bitfinex-derivatives/quotes_SOLF0:USTF0_20251018
["timestamp","ask_amount","ask_price","bid_price","bid_amount"]
[1760795230178,2.69,184.97,184.86,33.74]
[1760795230379,2.69,184.97,184.86,45.06]
[1760795230979,4.8654,184.94,184.86,45.06]
[1760795231675,7.82738923,184.93,184.73,0.94164761]
[1760795231879,2.69,184.91,184.73,0.94164761]
[1760795232077,4.05738923,184.9,184.73,0.94164761]
[1760795232281,4.8685,184.82,184.73,5.81224761]
[1760795232475,2.69,184.83,184.73,0.94164761]
[1760795233979,4.8691,184.8,184.73,0.94164761]
[1760795234178,2.69,184.83,184.73,0.94164761]
[1760795234687,4.8684,184.82,184.74,4.8702]
[1760795234877,2.69,184.83,184.73,0.94164761]
[1760795235982,7.5588,184.81,184.73,0.94164761]
[1760795236184,2.69,184.81,184.73,0.94164761]
[1760795236985,4.8691,184.8,184.73,0.94164761]
[1760795237282,7.5588,184.81,184.73,5.81204761]
[1760795237480,2.69,184.81,184.73,0.94164761]
[1760795238975,9.7325,184.9,184.73,0.94164761]
[1760795238976,2.82,184.77,184.73,0.94164761]
[1760795243288,4.8689,184.8,184.73,0.94164761]
[1760795244187,4.8689,184.8,184.73,46.12164761]
[1760795245187,4.8689,184.8,184.73,0.94164761]
[1760795245387,4.8689,184.8,184.73,46.12164761]
[1760795245688,4.8689,184.8,184.73,0.94164761]
[1760795246087,4.8689,184.8,184.74,45.18]
[1760795246289,4.8689,184.8,184.73,0.94164761]
[1760795246500,4.8689,184.8,184.74,45.18]
[1760795248188,4.8689,184.8,184.73,0.94164761]
[1760795248481,4.8689,184.8,184.74,45.18]
[1760795249293,4.8689,184.8,184.73,0.94164761]
[1760795249589,2.82,184.79,184.73,0.94164761]
[1760795250392,2.82,184.79,184.73,46.10164761]
[1760795250689,2.82,184.79,184.73,0.94164761]
[1760795250881,2.82,184.79,184.73,50.97214761]
[1760795253599,2.82,184.81,184.74,4.8702]
[1760795253995,2.82,184.81,184.74,50.0102]
[1760795254695,2.82,184.81,184.74,4.8702]
[1760795254891,2.82,184.81,184.74,45.14]
[1760795255092,7.6879,184.84,184.74,45.14]
[1760795255596,7.6879,184.84,184.75,45.16]
[1760795255990,4.05413288,184.89,184.75,45.16]
[1760795256293,4.05376473,184.88,184.74,45.14]
[1760795256492,2.82,184.86,184.73,0.94164761]
[1760795256796,2.82,184.79,184.74,45.16]
[1760795256996,2.82,184.79,184.73,46.10164761]
[1760795257898,2.82,184.79,184.73,0.94164761]
[1760795258197,2.82,184.79,184.73,5.81214761]
[1760795258393,2.82,184.79,184.74,45.14]
[1760795258792,2.82,184.84,184.74,45.14]
[1760795259196,2.82,184.84,184.75,45.16]
[1760795259497,2.82,184.84,184.73,0.94164761]
[1760795259697,2.82,184.84,184.74,45.16]
[1760795259897,2.82,184.84,184.75,45.16]
[1760795260097,7.6879,184.84,184.77,4.8695]
[1760795261692,2.82,184.84,184.78,45.14]
[1760795262296,2.82,184.84,184.73,0.94164761]
[1760795262600,2.82,184.84,184.74,45.14]
[1760795263002,2.82,184.84,184.79,4.869]
[1760795263690,2.82,184.84,184.79,50.009]
[1760795264294,2.82,184.84,184.8,4.8687]
[1760795264697,4.97380348,184.91,184.79,45.14]
[1760795264896,4.08071448,184.9,184.79,45.14]
[1760795265204,2.82,184.91,184.79,45.14]
[1760795266004,2.82,184.91,184.84,4.8678]
[1760795266300,2.82,184.91,184.85,45.14]
[1760795266498,2.71,184.94,184.86,39.48]
[1760795266703,2.71,184.94,184.87,45.14]
[1760795266902,2.71,184.94,184.87,43.84]
[1760795267705,7.5752,184.94,184.87,43.84]
[1760795268403,2.71,184.94,184.87,48.7068]
[1760795270096,2.71,184.94,184.87,43.84]
[1760795270097,7.5752,184.94,184.87,43.84]
[1760795270501,65.93889436,184.98,184.77,62.0]
[1760795270502,2.71,184.91,184.77,62.0]
[1760795270797,2.71,184.96,184.78,45.12]
[1760795270995,2.71,184.94,184.78,45.12]
[1760795271195,4.8667,184.89,184.79,4.8689]
[1760795271898,4.867,184.88,184.79,4.8689]
[1760795272600,4.867,184.88,184.8,45.14]
[1760795274404,7.577,184.88,184.8,45.14]
[1760795276301,7.577,184.88,184.79,49.9889]
[1760795276506,7.577,184.88,184.79,4.8689]
[1760795276705,7.577,184.88,184.79,49.9889]
[1760795277905,4.8662,184.9,184.74,62.0]
[1760795278099,2.71,184.89,184.8,45.12]
[1760795278999,2.71,184.89,184.81,4.8684]
[1760795280619,7.5767,184.89,184.81,4.8684]
[1760795281204,2.71,184.89,184.8,45.12]
[1760795281407,4.8678,184.84,184.76,49.9698]
[1760795281700,2.71,184.85,184.76,45.1]
[1760795281908,2.71,184.9,184.76,45.1]
[1760795282208,2.71,184.9,184.73,0.94164761]
[1760795282408,2.71,184.86,184.79,4.8689]
[1760795282710,2.71,184.86,184.73,0.94164761]
[1760795283204,4.8677,184.85,184.77,4.8696]
[1760795283405,4.8677,184.85,184.77,50.0096]
[1760795284094,4.8677,184.85,184.77,49.9896]
[1760795284900,4.8677,184.85,184.77,4.8696]
[1760795285106,4.8677,184.85,184.77,49.9896]
[1760795286308,4.8677,184.85,184.77,4.8696]
[1760795286606,4.8677,184.85,184.78,4.8692]
[1760795287003,4.8677,184.85,184.78,49.9892]
[1760795287210,4.8677,184.85,184.78,4.8692]
[1760795287410,4.8677,184.85,184.78,49.9692]
[1760795288610,2.71,184.86,184.78,49.9692]
[1760795289208,2.71,184.86,184.78,4.8692]
[1760795289405,2.71,184.86,184.79,45.1]
[1760795290311,2.71,184.86,184.78,4.8692]
[1760795290512,2.71,184.86,184.79,45.1]
[1760795291209,4.8677,184.85,184.79,45.1]
[1760795291816,4.8677,184.85,184.78,4.8692]
[1760795292011,4.8677,184.85,184.79,45.1]
[1760795292215,4.8677,184.85,184.78,4.8692]
[1760795292515,4.8677,184.85,184.79,45.1]
[1760795292917,4.8677,184.85,184.78,4.8692]
[1760795293111,4.8677,184.85,184.79,45.1]
[1760795293412,4.8671,184.87,184.74,62.0]
[1760795293714,2.62,184.89,184.75,45.1]
[1760795294118,2.62,184.89,184.76,45.1]
[1760795294516,2.62,184.89,184.77,45.1]
[1760795295118,7.4866,184.89,184.82,4.8682]
[1760795295319,7.4866,184.89,184.83,45.1]
[1760795295519,9.7303,184.95,184.74,62.0]
[1760795295720,4.08704352,184.94,184.75,45.1]
[1760795295920,2.62,184.92,184.76,45.1]
[1760795296116,2.62,184.9,184.8,4.8687]
[1760795296314,4.5957625,184.94,184.8,4.8687]
[1760795296612,2.65,184.92,184.8,4.8687]
[1760795296820,2.65,184.9,184.8,4.8687]
[1760795297018,2.65,184.93,184.8,4.8687]
[1760795297221,4.08767243,184.92,184.8,4.8687]
[1760795297420,2.65,184.9,184.8,4.8687]
[1760795297721,2.65,184.93,184.8,4.8687]
[1760795297914,2.65,184.91,184.8,4.8687]
[1760795298115,7.5172,184.87,184.8,49.9687]
[1760795299521,7.5172,184.87,184.8,4.8687]
[1760795299821,7.5172,184.87,184.8,49.9687]
[1760795300921,7.5172,184.87,184.8,4.8687]
[1760795301121,7.5172,184.87,184.81,45.1]
[1760795302719,7.5172,184.87,184.8,4.8687]
[1760795303222,7.5172,184.87,184.81,45.1]
[1760795305424,7.5172,184.87,184.8,4.8687]
[1760795305818,9.7303,184.95,184.79,45.1]
[1760795305819,2.65,184.91,184.79,45.1]
[1760795306020,2.65,184.91,184.78,4.8692]
[1760795306021,2.65,184.88,184.78,4.8692]
[1760795306221,7.5171,184.87,184.8,4.8687]
[1760795306427,7.5171,184.87,184.8,49.9687]
[1760795306627,2.65,184.87,184.8,49.9687]
[1760795307026,2.65,184.87,184.8,4.8687]
[1760795307216,2.65,184.87,184.8,49.9687]
[1760795307821,2.65,184.87,184.8,4.8687]
[1760795308021,4.8674,184.86,184.8,49.9687]
[1760795308427,4.8674,184.86,184.8,4.8687]
[1760795308626,4.8674,184.86,184.8,49.9687]
[1760795308832,4.8674,184.86,184.8,4.8687]
[1760795309023,4.8674,184.86,184.8,49.9687]
[1760795309727,4.8674,184.86,184.8,4.8687]
[1760795309922,4.8674,184.86,184.8,49.9687]
[1760795310323,4.8674,184.86,184.8,4.8687]
[1760795310725,4.8674,184.86,184.8,49.9687]
[1760795310925,2.65,184.91,184.8,45.1]
[1760795311133,2.65,184.95,184.81,45.1]
[1760795311332,2.65,184.95,184.75,75.7578]
[1760795311333,2.65,184.95,184.82,45.1]
[1760795311522,2.65,184.95,184.88,4.8667]
[1760795311728,2.65,184.95,184.89,44.4]
[1760795312127,2.65,184.95,184.89,49.9663]
[1760795312329,2.65,184.95,184.89,4.8663]
[1760795312526,2.65,184.95,184.9,45.1]
[1760795312721,2.65,185.02,184.91,45.1]
[1760795313331,2.65,185.02,184.83,13.35706343]
[1760795313332,4.8635,185.01,184.83,13.35706343]
[1760795313530,2.65,185.02,184.84,45.08]
[1760795314037,4.8638,185.0,184.91,4.8657]
[1760795314230,4.8638,185.0,184.92,107.08]
[1760795314829,4.8638,185.0,184.92,62.0]
[1760795315336,4.8638,185.0,184.93,45.08]
[1760795316330,4.8638,185.0,184.92,66.8655]
[1760795316737,7.5131,185.02,184.93,49.9452]
[1760795317230,7.5131,185.02,184.93,4.8652]
[1760795317633,7.5131,185.02,184.94,45.08]
[1760795317834,7.5131,185.02,184.95,45.08]
[1760795318234,9.18,185.11,184.95,45.08]
[1760795318235,4.8626,185.04,184.95,45.08]
[1760795318731,4.8626,185.04,184.94,4.8649]
[1760795318929,4.8626,185.04,184.95,45.08]
[1760795319332,5.00820815,185.12,184.95,45.08]
[1760795319530,5.00820815,185.09,184.93,45.08]
[1760795319728,2.65,185.07,184.93,45.08]
[1760795319936,2.65,184.96,184.76,9.7394]
[1760795320168,2.65,184.96,184.77,45.08]
[1760795320335,2.65,184.96,184.78,45.08]
[1760795320532,2.65,184.96,184.79,45.08]
[1760795321338,2.65,184.96,184.87,4.8669]
[1760795321541,2.65,184.96,184.88,45.08]
[1760795322340,2.65,184.96,184.89,45.06]
[1760795322733,2.65,184.96,184.78,9.7387]
[1760795322734,2.65,184.96,184.81,62.0]
[1760795322935,2.65,184.96,184.88,4.8665]
[1760795323336,2.65,184.96,184.89,45.06]
[1760795324442,2.65,184.96,184.88,4.8665]
[1760795324837,2.65,184.96,184.89,45.06]
[1760795325440,14.73180815,185.07,184.81,62.0]
[1760795325441,2.65,185.0,184.81,62.0]
[1760795325951,4.08217985,185.06,184.82,45.06]
[1760795326145,2.85,185.04,184.82,45.06]
[1760795326346,7.7143,184.98,184.82,45.06]
[1760795326543,7.7143,184.98,184.81,62.0]
[1760795326743,7.7143,184.98,184.82,45.06]
[1760795326940,4.8645,184.97,184.82,45.06]
[1760795327641,4.8645,184.97,184.81,62.0]
[1760795327948,4.8645,184.97,184.83,45.06]
[1760795328341,4.8645,184.97,184.84,45.06]
[1760795328645,4.8645,184.97,184.81,62.0]
[1760795328849,2.85,184.98,184.9,4.8662]
[1760795329046,2.85,184.98,184.91,45.06]
[1760795329542,4.8634,185.01,184.92,45.06]
[1760795329739,2.85,185.0,184.82,9.7364]
[1760795330244,7.7138,185.0,184.91,4.8658]
[1760795330447,7.7138,185.0,184.92,45.06]
[1760795331243,7.714,184.99,184.92,45.06]
[1760795331442,7.714,184.99,184.91,49.9258]
[1760795332144,7.714,184.99,184.91,4.8658]
[1760795332345,7.714,184.99,184.92,10.92]
[1760795333350,7.714,184.99,184.91,66.8658]
[1760795333646,7.714,184.99,184.92,45.06]
[1760795334441,7.714,184.99,184.91,4.8658]
[1760795334741,2.85,184.97,184.89,4.8664]
[1760795335043,2.85,184.97,184.9,10.92]
[1760795335244,2.85,184.97,184.89,4.8664]
[1760795335551,2.85,184.96,184.87,4.8669]
[1760795335842,9.7252,185.04,184.87,4.8669]
[1760795336052,4.08160011,185.03,184.87,4.8669]
[1760795336240,4.08160011,185.02,184.87,4.8669]
[1760795336437,4.08160011,185.01,184.87,9.3469]
[1760795336648,9.7252,185.04,184.87,4.8669]
[1760795336944,2.85,185.02,184.87,4.8669]
[1760795337145,2.85,185.03,184.87,66.8669]
[1760795337345,4.8649,184.96,184.88,4.8666]
[1760795337649,2.85,184.95,184.88,4.8666]
[1760795341946,7.715,184.95,184.88,4.8666]
[1760795343856,4.8653,184.94,184.86,4.8672]
[1760795344052,4.08448311,185.0,184.73,14.29871104]
[1760795344253,4.08448311,184.99,184.74,45.06]
[1760795344449,4.8657,184.92,184.82,4.8681]
[1760795344645,2.85,184.96,184.78,62.0]
[1760795345552,2.85,184.96,184.87,4.867]
[1760795345753,2.85,184.96,184.85,45.06]
[1760795346557,7.7147,184.96,184.86,45.06]
[1760795346757,7.7147,184.96,184.87,45.06]
[1760795347254,7.7147,184.96,184.89,4.8663]
[1760795348758,4.8651,184.95,184.88,45.06]
[1760795349059,4.8651,184.95,184.87,4.8669]
[1760795350058,5.00820815,185.04,184.87,4.8669]
[1760795350059,2.81,184.93,184.87,4.8669]
[1760795350660,2.81,184.93,184.8,62.0]
[1760795350661,7.6756,184.93,184.84,49.9275]
[1760795351056,7.6756,184.93,184.84,45.06]
[1760795351453,7.6756,184.93,184.8,62.0]
[1760795351668,7.6756,184.93,184.81,45.06]
[1760795351850,7.6756,184.93,184.82,45.06]
[1760795352052,7.6756,184.93,184.8,62.0]
[1760795352452,7.6756,184.93,184.81,45.06]
[1760795352856,7.6756,184.93,184.82,45.06]
[1760795353061,7.6756,184.93,184.85,4.8673]
[1760795353256,7.6756,184.93,184.8,62.0]
[1760795353257,2.81,184.93,184.83,45.06]
[1760795353463,4.865,184.95,184.83,45.06]
[1760795353765,7.675,184.95,184.83,45.06]
[1760795354160,7.675,184.95,184.8,62.0]
[1760795354359,7.675,184.95,184.81,45.06]
[1760795354559,7.675,184.95,184.82,45.06]
[1760795354962,7.675,184.95,184.8,62.0]
[1760795355166,7.675,184.95,184.81,45.06]
[1760795355764,7.675,184.95,184.82,45.06]
[1760795355959,7.675,184.95,184.87,4.8667]
[1760795357175,2.8,184.93,184.87,49.9267]
[1760795357369,2.8,184.93,184.87,45.06]
[1760795357766,2.8,184.93,184.85,4.8674]
[1760795358869,2.8,184.91,184.85,4.8674]
[1760795359465,7.6661,184.91,184.84,45.06]
[1760795359669,7.6661,184.91,184.83,4.8679]
[1760795359866,7.6661,184.91,184.83,49.9279]
[1760795360675,4.73956824,184.97,184.83,49.9279]
[1760795360676,2.8,184.89,184.83,4.8679]
[1760795360877,2.8,184.89,184.83,49.9279]
[1760795361070,2.8,184.89,184.83,4.8679]
[1760795361576,2.8,184.89,184.83,49.9279]
[1760795362276,2.8,184.89,184.8,62.0]
[1760795362475,2.8,184.89,184.81,45.06]
[1760795363066,2.8,184.89,184.82,45.06]
[1760795363270,4.8652,184.94,184.86,4.8671]
[1760795363869,2.8,184.95,184.83,45.06]
[1760795364382,2.8,184.95,184.8,75.35706343]
[1760795364779,2.8,184.95,184.81,45.06]
[1760795364975,2.8,184.95,184.88,4.8666]
[1760795365377,4.8653,184.94,184.89,45.06]
[1760795365677,2.8,184.98,184.9,45.06]
[1760795365980,67.76533699,184.99,184.9,45.06]
[1760795365981,2.8,184.92,184.9,45.06]
[1760795367081,2.8,184.92,184.87,4.8669]
[1760795367300,2.8,184.92,184.88,45.06]
[1760795367485,4.865,184.95,184.87,4.8669]
[1760795367783,4.865,184.95,184.88,45.06]
[1760795368681,4.865,184.95,184.87,4.8669]
[1760795368881,4.865,184.95,184.88,45.06]
[1760795369980,2.8,184.94,184.88,45.06]
[1760795370182,2.8,184.93,184.87,4.8669]
[1760795370686,7.6656,184.93,184.86,45.06]
[1760795370985,7.6656,184.93,184.85,49.9275]
[1760795371178,4.8658,184.92,184.85,49.9275]
[1760795371375,2.8,184.93,184.86,4.8671]
[1760795371779,2.8,184.93,184.87,45.06]
[1760795372392,7.6656,184.93,184.87,45.06]
[1760795372590,7.6656,184.93,184.86,4.8671]
[1760795372780,4.866,184.91,184.84,4.8677]
[1760795373183,4.866,184.91,184.85,45.06]
[1760795373383,4.866,184.91,184.84,4.8677]
[1760795373886,4.866,184.91,184.85,45.06]
[1760795374388,2.8,184.93,184.8,62.0]
[1760795374389,7.6655,184.93,184.8,62.0]
[1760795374691,7.6655,184.93,184.81,45.06]
[1760795374893,7.6655,184.93,184.82,45.06]
[1760795375092,4.8649,184.96,184.88,4.8666]
[1760795375283,7.6649,184.96,184.88,4.8666]
[1760795375487,7.6649,184.96,184.89,45.06]
[1760795375683,7.6649,184.96,184.88,4.8666]
[1760795375986,4.865,184.95,184.89,45.06]
[1760795377790,4.865,184.95,184.88,4.8666]
[1760795377991,4.865,184.95,184.89,45.06]
[1760795379896,4.865,184.95,184.89,4.8663]
[1760795380190,7.665,184.95,184.9,45.06]
[1760795380587,70.56533699,184.99,184.82,13.35706343]
[1760795380795,70.56533699,184.99,184.83,13.35706343]
[1760795380990,4.12136915,184.98,184.83,13.35706343]
[1760795381191,70.56533699,184.99,184.84,45.06]
[1760795381896,70.56533699,184.99,184.83,13.35706343]
[1760795382191,70.56533699,184.99,184.81,16.21]
[1760795382192,4.12103052,184.98,184.82,13.35706343]
[1760795382390,2.8,184.96,184.84,45.06]
[1760795382589,2.8,184.94,184.84,45.06]
[1760795382788,4.8655,184.93,184.87,4.8669]
[1760795382988,4.8655,184.93,184.8,62.0]
[1760795383197,4.8655,184.93,184.81,45.06]
[1760795384592,4.8655,184.93,184.86,4.8671]
[1760795384791,7.6658,184.92,184.86,45.06]
[1760795384990,7.6658,184.92,184.8,62.0]
[1760795385389,7.6658,184.92,184.81,45.06]
[1760795385587,7.6658,184.92,184.8,62.0]
[1760795385588,7.6658,184.92,184.82,45.06]
[1760795385788,7.6658,184.92,184.85,4.8674]
[1760795386194,4.8658,184.92,184.86,45.06]
[1760795386593,4.8658,184.92,184.87,45.06]
[1760795386897,7.6758,184.92,184.86,4.8671]
[1760795387101,7.6758,184.92,184.87,45.06]
[1760795387286,7.6758,184.92,184.86,4.8671]
[1760795387495,7.6758,184.92,184.87,45.06]
[1760795387690,7.6758,184.92,184.88,45.06]
[1760795388496,4.67043824,184.98,184.88,45.06]
[1760795388692,6.59341282,185.01,184.88,45.06]
[1760795388693,6.9292806,184.97,184.88,45.06]
[1760795388894,5.01811132,185.01,184.88,45.06]
[1760795389202,7.6745,184.97,184.82,9.7363]
[1760795389598,2.81,184.97,184.83,45.06]
[1760795389803,2.81,184.97,184.92,4.8656]
[1760795390003,2.81,184.97,184.93,45.06]
[1760795390505,7.674,184.99,184.93,45.06]
[1760795390904,2.81,184.99,184.93,45.06]
[1760795391405,2.81,185.05,184.94,45.06]
[1760795391603,2.81,185.03,184.86,62.0]
[1760795391799,4.11082389,185.02,184.86,62.0]
[1760795391999,7.6728,185.03,184.94,4.865]
[1760795392198,4.11142022,185.02,184.94,4.865]
[1760795392407,7.6728,185.03,184.94,4.865]
[1760795392605,4.1098831,185.02,184.95,45.06]
[1760795392805,7.6728,185.03,184.95,45.06]
[1760795393003,4.10988611,185.02,184.94,4.865]
[1760795393209,7.6728,185.03,184.95,45.04]
[1760795393397,7.6728,185.03,184.96,45.04]
[1760795394196,7.6728,185.03,184.86,62.0]
[1760795394600,7.6728,185.03,184.87,45.04]
[1760795396109,7.6728,185.03,184.94,4.8649]
[1760795396306,7.6728,185.03,184.95,45.04]
[1760795397004,7.6728,185.03,184.95,4.8647]
[1760795397203,7.6728,185.03,184.96,45.04]
[1760795397707,2.81,185.01,184.95,45.04]
[1760795399098,7.6735,185.01,184.95,45.04]
[1760795399707,2.81,185.0,184.96,45.04]
[1760795400105,7.6735,185.01,184.94,4.865]
[1760795400507,7.6735,185.01,184.95,45.04]
[1760795401313,2.81,184.98,184.88,62.0]
[1760795401511,5.01811132,185.03,184.81,0.94060409]
[1760795401708,2.81,185.0,184.85,4.8675]
[1760795402014,2.81,184.98,184.82,45.04]
[1760795402207,2.81,184.96,184.81,0.94060409]
[1760795402408,9.7286,184.98,184.81,0.94060409]
[1760795402409,2.81,184.94,184.81,0.94060409]
[1760795402614,2.81,184.92,184.82,45.04]
[1760795402814,2.81,184.95,184.82,45.04]
[1760795403114,4.09847827,184.94,184.82,45.04]
[1760795403308,2.81,184.92,184.82,45.04]
[1760795403608,2.81,184.9,184.81,0.94060409]
[1760795404008,4.8672,184.87,184.81,0.94060409]
[1760795404216,2.81,184.87,184.81,0.94060409]
[1760795405005,2.81,184.85,184.81,0.94060409]
[1760795405307,2.81,184.91,184.81,0.94060409]
[1760795405718,4.8662,184.9,184.81,1.84060409]
[1760795406313,4.8662,184.9,184.81,0.94060409]
[1760795406510,4.8662,184.9,184.82,12.1281]
[1760795406711,4.8662,184.9,184.83,12.42]
[1760795406908,2.81,184.91,184.83,12.42]
[1760795407110,2.81,184.91,184.83,4.8678]
[1760795407612,2.81,184.91,184.84,10.48]
[1760795407912,2.81,184.91,184.84,19.8]
[1760795408418,2.81,184.91,184.84,24.6675]
[1760795408618,2.85,184.95,184.84,19.8]
[1760795409321,4.8644,184.97,184.84,19.8]
[1760795409712,2.85,184.96,184.84,19.8]
[1760795410417,7.7149,184.96,184.87,4.867]
[1760795412316,7.7141,184.99,184.84,19.8]
[1760795413220,7.7143,184.98,184.84,19.8]
[1760795413419,7.7143,184.98,184.83,62.0]
[1760795413622,7.7143,184.98,184.84,45.04]
[1760795414009,7.7143,184.98,184.88,4.8667]
[1760795414217,4.0943869,185.04,184.85,75.7172]
[1760795414422,2.85,185.06,184.87,75.7095]
[1760795414622,2.85,185.06,184.88,45.08]
[1760795414823,2.85,185.06,184.87,39.30106343]
[1760795415021,13.66420724,185.13,184.88,45.12]
[1760795415316,13.66420724,185.13,184.96,4.8646]
[1760795415317,2.85,185.11,184.96,4.8646]
[1760795415523,4.09565101,185.1,184.97,45.12]
[1760795415724,2.85,185.08,184.97,45.12]
[1760795415925,7.7115,185.08,184.97,45.12]
[1760795416123,2.85,185.07,184.98,45.14]
[1760795416919,2.85,185.07,184.98,50.0041]
[1760795417622,2.85,185.07,184.99,4.8636]
[1760795418121,2.85,185.07,184.96,4.8644]
[1760795418320,2.85,185.07,184.97,45.12]
[1760795420229,2.64,185.05,184.98,45.12]
[1760795421426,2.64,185.05,184.91,62.0]
[1760795421427,2.64,185.05,184.99,45.12]
[1760795422026,2.64,185.11,184.94,4.8651]
[1760795422240,2.64,185.09,184.95,45.1]
[1760795422418,2.64,185.12,184.95,45.1]
[1760795422625,2.64,185.1,184.95,45.1]
[1760795422826,3.98338707,185.09,184.95,45.1]
[1760795423027,7.5028,185.04,184.95,45.1]
[1760795423622,4.8633,185.01,184.91,66.8657]
[1760795423828,2.64,185.0,184.91,4.8657]
[1760795424018,2.64,185.0,184.92,45.08]
[1760795425129,4.8628,185.03,184.92,45.08]
[1760795425835,4.8623,185.05,184.92,45.08]
[1760795426033,2.64,185.08,184.97,4.8643]
[1760795426230,2.64,185.08,184.92,45.08]
[1760795426730,2.64,185.08,184.93,62.0]
[1760795426934,7.5017,185.08,184.93,62.0]
[1760795427928,7.5017,185.08,184.98,4.864]
[1760795428134,7.5017,185.08,184.99,45.12]
[1760795428638,2.64,185.12,184.99,45.12]
[1760795429133,2.64,185.17,185.0,45.12]
[1760795429336,2.64,185.17,185.01,45.12]
[1760795429938,4.8594,185.16,185.07,4.8615]
[1760795430132,2.64,185.17,185.08,45.14]
[1760795430550,7.4993,185.17,185.08,50.0013]
[1760795432340,7.4993,185.17,185.08,4.8613]
[1760795432537,7.4993,185.17,185.09,45.12]
[1760795433234,4.8596,185.16,184.97,10.04524282]
[1760795433439,67.84054314,185.19,184.98,45.12]
[1760795434038,4.8602,185.14,184.98,45.12]
[1760795434940,4.8594,185.16,184.98,45.12]
[1760795435137,4.8594,185.16,184.99,62.0]
[1760795435947,4.8594,185.16,185.07,4.8615]
[1760795436144,4.8594,185.16,185.08,45.12]
[1760795436642,7.4999,185.15,185.05,4.862]
[1760795436950,7.4999,185.15,185.06,45.12]
[1760795437345,2.64,185.13,185.03,4.8627]
[1760795437643,2.64,185.13,185.07,45.12]
[1760795438350,2.64,185.11,185.07,45.12]
[1760795439950,4.8606,185.12,185.07,45.12]
[1760795440146,2.64,185.11,185.07,45.12]
[1760795440350,4.8606,185.12,185.07,45.12]
[1760795440553,2.64,185.11,185.07,45.12]
[1760795442545,4.8606,185.12,185.07,45.12]
[1760795442743,4.8609,185.11,185.07,45.12]
[1760795442946,2.64,185.1,185.07,45.12]
[1760795443348,67.84054314,185.19,184.99,62.0]
[1760795443349,2.64,185.18,184.99,62.0]
[1760795443557,2.64,185.16,185.0,45.12]
[1760795443758,2.64,185.16,185.01,45.12]
[1760795443950,8.84653481,185.18,185.01,45.12]
[1760795444150,4.8617,185.08,185.01,45.12]
[1760795444859,4.8619,185.07,185.01,45.12]
[1760795447456,4.8613,185.09,185.01,45.12]
[1760795449053,4.8613,185.09,185.02,4.8629]
[1760795449558,4.8608,185.11,185.03,4.8626]
[1760795449753,4.8608,185.11,184.94,71.73]
[1760795450153,4.8608,185.11,184.95,45.1]
[1760795450349,4.8608,185.11,184.94,71.73]